bitfinex/quotes_BTCUSD_20250110
["timestamp","ask_amount","ask_price","bid_price","bid_amount"]
[1736530307429,8.54e-05,94468.0,94467.0,0.005]
[1736530307625,8.54e-05,94468.0,94467.0,0.004]
[1736530307834,8.54e-05,94468.0,94462.0,0.423448]
[1736530308023,8.54e-05,94468.0,94462.0,0.431448]
[1736530308024,0.0010854,94468.0,94462.0,0.431448]
[1736530308226,0.0010854,94468.0,94462.0,0.219724]
[1736530308437,0.0010854,94468.0,94458.0,0.0086]
[1736530308438,0.211714,94467.0,94458.0,0.0086]
[1736530308631,0.211714,94467.0,94457.0,0.211734]
[1736530309021,0.211714,94467.0,94462.0,0.002]
[1736530309444,0.211714,94467.0,94457.0,0.211734]
[1736530309644,0.211714,94467.0,94454.0,0.00014503]
[1736530309847,0.0010854,94468.0,94454.0,0.00014503]
[1736530310144,0.211741,94455.0,94454.0,0.00014503]
[1736530310521,0.211734,94459.0,94454.0,0.00014503]
[1736530311193,0.211734,94459.0,94454.0,0.00314503]
[1736530311417,0.211716,94466.0,94454.0,0.00314503]
[1736530311622,0.01064846,94468.0,94454.0,0.00014503]
[1736530311736,8.54e-05,94468.0,94454.0,0.00014503]
[1736530311941,0.211732,94459.0,94454.0,0.00714503]
[1736530312144,8.54e-05,94468.0,94454.0,0.00714503]
[1736530312356,8.54e-05,94468.0,94454.0,0.00814503]
[1736530312357,0.21174,94456.0,94454.0,0.00814503]
[1736530312558,0.12729976,94455.0,94454.0,0.00814503]
[1736530312762,0.12729976,94455.0,94454.0,0.00714503]
[1736530313207,0.27729976,94455.0,94454.0,0.00914503]
[1736530313358,0.27729976,94455.0,94454.0,0.00214503]
[1736530313560,0.36948677,94455.0,94454.0,0.00014503]
[1736530313839,0.36948677,94455.0,94454.0,0.00314503]
[1736530314028,0.25629976,94455.0,94454.0,0.00014503]
[1736530314230,0.26709194,94455.0,94454.0,0.00014503]
[1736530314489,0.29209194,94455.0,94454.0,0.00014503]
[1736530314923,0.26909194,94455.0,94454.0,0.00014503]
[1736530315136,0.27709194,94455.0,94454.0,0.00114503]
[1736530315378,0.01079218,94455.0,94454.0,0.00014503]
[1736530315780,0.004,94455.0,94454.0,0.00014503]
[1736530316182,0.10429976,94455.0,94454.0,0.00014503]
[1736530316803,0.10929976,94455.0,94454.0,0.00014503]
[1736530317009,0.10429976,94455.0,94454.0,0.00014503]
[1736530317415,0.10429976,94455.0,94454.0,0.00214503]
[1736530318282,0.35230595,94455.0,94454.0,0.00214503]
[1736530318976,0.45230595,94455.0,94454.0,0.00214503]
[1736530319207,0.27729976,94455.0,94454.0,0.00214503]
[1736530319713,0.28029976,94455.0,94454.0,0.00214503]
[1736530320166,0.25429976,94455.0,94454.0,0.00214503]
[1736530320374,0.25729976,94455.0,94454.0,0.00014503]
[1736530320523,0.26429976,94455.0,94454.0,0.00114503]
[1736530320951,0.003,94455.0,94454.0,0.00014503]
[1736530321151,0.01,94455.0,94454.0,0.04724503]
[1736530321336,0.01,94455.0,94454.0,0.23334479]
[1736530321566,0.003,94455.0,94454.0,0.24094479]
[1736530321965,0.211687,94479.0,94464.0,0.21172]
[1736530322178,0.211687,94479.0,94464.0,0.42344]
[1736530323006,0.211696,94475.0,94464.0,0.21172]
[1736530323206,8.53e-05,94483.0,94465.0,0.31707525]
[1736530323513,8.53e-05,94483.0,94467.0,0.211714]
[1736530323726,8.53e-05,94483.0,94467.0,0.31601376]
[1736530324841,0.0010854,94468.0,94467.0,0.31601376]
[1736530325490,0.0010854,94468.0,94467.0,1.81601376]
[1736530326137,8.54e-05,94468.0,94467.0,1.81901376]
[1736530326361,8.54e-05,94468.0,94467.0,0.003]
[1736530326519,0.0010854,94468.0,94467.0,0.012]
[1736530328921,0.10538516,94468.0,94467.0,0.012]
[1736530329683,8.54e-05,94468.0,94467.0,0.003]
[1736530330095,8.54e-05,94468.0,94454.0,0.12664503]
[1736530330096,0.211741,94455.0,94454.0,0.00014503]
[1736530330705,0.31604076,94455.0,94454.0,0.00014503]
[1736530331330,0.31604076,94455.0,94454.0,0.00414503]
[1736530331798,0.31104076,94455.0,94454.0,0.00414503]
[1736530332002,0.56805685,94455.0,94454.0,0.00414503]
[1736530332205,0.49460617,94455.0,94454.0,0.00414503]
[1736530332839,0.59460617,94455.0,94454.0,3e-08]
[1736530333039,0.59460617,94455.0,94417.0,0.0779]
[1736530333040,0.211821,94419.0,94417.0,0.0779]
[1736530333251,0.211821,94419.0,94418.0,0.00031566]
[1736530334241,0.211821,94419.0,94418.0,0.00431566]
[1736530336405,0.211785,94436.0,94418.0,0.00431566]
[1736530336406,0.2118,94429.0,94418.0,0.00431566]
[1736530336670,0.01049257,94435.0,94418.0,0.00531566]
[1736530336858,0.211821,94419.0,94418.0,0.00531566]
[1736530337470,0.211821,94419.0,94418.0,0.00431566]
[1736530337673,0.211821,94419.0,94418.0,0.00031566]
[1736530339811,0.211821,94419.0,94418.0,0.00131566]
[1736530340304,0.22220488,94419.0,94418.0,0.00431566]
[1736530342716,0.21181,94424.0,94418.0,0.00431566]
[1736530342965,0.211798,94430.0,94419.0,0.257121]
[1736530343199,0.15,94436.0,94420.0,0.023]
[1736530343448,0.01034154,94438.0,94420.0,0.023]
[1736530343449,0.211797,94430.0,94420.0,1.523]
[1736530343679,0.211785,94435.0,94420.0,1.523]
[1736530343889,0.10429976,94461.0,94421.0,0.18805871]
[1736530343890,0.31602676,94461.0,94421.0,0.18805871]
[1736530344097,0.01047174,94455.0,94424.0,0.02108727]
[1736530344329,0.211749,94452.0,94439.0,0.211775]
[1736530344539,8.54e-05,94468.0,94425.0,0.22729902]
[1736530344754,8.54e-05,94468.0,94440.0,0.291473]
[1736530344986,0.211723,94463.0,94441.0,0.023]
[1736530345200,8.54e-05,94468.0,94441.0,0.023]
[1736530345201,0.211725,94462.0,94447.0,0.023]
[1736530345422,8.54e-05,94468.0,94448.0,0.00105868]
[1736530345658,8.54e-05,94468.0,94462.0,0.211724]
[1736530346072,8.54e-05,94468.0,94460.0,0.023]
[1736530346504,0.211724,94463.0,94460.0,0.00014506]
[1736530347357,0.211724,94463.0,94462.0,0.002]
[1736530347575,8.54e-05,94468.0,94462.0,0.002]
[1736530347786,8.54e-05,94468.0,94460.0,0.00414506]
[1736530347995,0.2117974,94468.0,94460.0,0.00414506]
[1736530348216,0.2117974,94468.0,94460.0,0.00114506]
[1736530348418,0.2117974,94468.0,94460.0,0.00314506]
[1736530348635,8.54e-05,94468.0,94461.0,0.12835833]
[1736530348882,0.2117974,94468.0,94461.0,0.023]
[1736530349091,8.54e-05,94468.0,94460.0,0.00314506]
[1736530349303,0.211723,94463.0,94460.0,0.00314506]
[1736530349480,0.423446,94463.0,94460.0,0.00214506]
[1736530349686,0.361727,94461.0,94460.0,0.00014506]
[1736530349886,0.46602676,94461.0,94460.0,0.00014506]
[1736530350087,0.46602676,94461.0,94460.0,0.00514506]
[1736530350088,0.55498168,94461.0,94460.0,0.00514506]
[1736530350357,0.46602676,94461.0,94460.0,0.00014506]
[1736530350574,0.56602676,94461.0,94460.0,0.00214506]
[1736530350812,0.66602676,94461.0,94460.0,6e-08]
[1736530351016,0.211808,94425.0,94424.0,0.0823]
[1736530351227,0.211808,94425.0,94424.0,0.08244511]
[1736530351449,0.211796,94431.0,94424.0,0.08244511]
[1736530351664,0.211805,94427.0,94424.0,0.08244511]
[1736530351873,0.42361,94427.0,94424.0,0.08244511]
[1736530353325,0.211805,94427.0,94424.0,0.08244511]
[1736530353521,0.211805,94427.0,94424.0,0.08344511]
[1736530353727,0.02159937,94454.0,94424.0,0.08744511]
[1736530353938,0.211796,94431.0,94424.0,0.08244511]
[1736530354356,0.211796,94431.0,94424.0,0.08744511]
[1736530354598,0.211768,94443.0,94424.0,0.08744511]
[1736530354768,0.10429976,94453.0,94425.0,0.02405892]
[1736530355130,0.15,94452.0,94424.0,0.08444511]
[1736530355315,0.211808,94426.0,94424.0,0.00214511]
[1736530355552,0.10429976,94425.0,94424.0,0.00214511]
[1736530355967,0.10429976,94425.0,94424.0,0.00114511]
[1736530356381,0.25429976,94425.0,94424.0,0.00114511]
[1736530356559,0.3443274,94425.0,94424.0,0.00014511]
[1736530356827,0.4443274,94425.0,94424.0,0.00014511]
[1736530357037,0.35429976,94425.0,94424.0,0.00214511]
[1736530357250,0.25429976,94425.0,94424.0,0.00014511]
[1736530357660,0.26029976,94425.0,94424.0,0.00114511]
[1736530357811,0.25429976,94425.0,94424.0,0.00114511]
[1736530358234,0.36029976,94425.0,94424.0,0.00114511]
[1736530358473,0.35859952,94425.0,94424.0,0.00114511]
[1736530358855,0.25429976,94425.0,94424.0,0.00114511]
[1736530359073,0.25429976,94425.0,94424.0,0.00014511]
[1736530359233,0.25729976,94425.0,94424.0,0.00014511]
[1736530359934,0.25629976,94425.0,94424.0,0.00014511]
[1736530360106,0.25929976,94425.0,94424.0,0.00014511]
[1736530360354,0.25729976,94425.0,94424.0,0.00014511]
[1736530360598,0.26129976,94425.0,94424.0,0.00014511]
[1736530360831,0.157,94425.0,94424.0,0.00014511]
[1736530361649,0.153,94425.0,94424.0,0.00014511]
[1736530363075,0.22237566,94426.0,94424.0,0.00014511]
[1736530363295,0.003,94425.0,94424.0,0.00014511]
[1736530363599,0.25829976,94425.0,94424.0,0.00014511]
[1736530363770,0.151,94425.0,94424.0,0.00014511]
[1736530364032,0.001,94425.0,94424.0,0.00014511]
[1736530364243,0.002,94425.0,94424.0,0.00014511]
[1736530364413,0.152,94425.0,94424.0,0.00014511]
[1736530364845,0.001,94425.0,94424.0,0.00014511]
[1736530365050,0.001,94425.0,94424.0,0.07824511]
[1736530365592,0.001,94425.0,94424.0,0.20554487]
[1736530365797,0.001,94425.0,94424.0,0.25384487]
[1736530366206,0.211766,94444.0,94425.0,0.234808]
[1736530366382,0.211766,94444.0,94427.0,0.023]
[1736530366620,0.211766,94444.0,94429.0,0.023]
[1736530367035,0.211749,94452.0,94432.0,0.211791]
[1736530367244,0.211737,94457.0,94442.0,0.0795]
[1736530367662,0.423474,94457.0,94442.0,0.0795]
[1736530368271,0.211729,94460.0,94443.0,0.211767]
[1736530368655,0.211727,94462.0,94446.0,0.023]
[1736530368656,0.211726,94462.0,94446.0,0.023]
[1736530368831,0.211726,94462.0,94448.0,0.023]
[1736530370034,0.211726,94462.0,94447.0,0.023]
[1736530370471,0.212726,94462.0,94449.0,0.023]
[1736530370672,0.211735,94458.0,94449.0,0.023]
[1736530371109,0.211735,94458.0,94446.0,0.023]
[1736530371773,0.211741,94455.0,94445.0,0.023]
[1736530372169,0.423501,94451.0,94447.0,0.003]
[1736530373140,0.21175,94451.0,94447.0,0.003]
[1736530373339,0.21175,94451.0,94444.0,0.0481]
[1736530373340,0.211738,94457.0,94444.0,0.0481]
[1736530373543,0.211738,94457.0,94445.0,0.023]
[1736530373754,0.211738,94457.0,94446.0,0.006]
[1736530373963,0.211733,94459.0,94448.0,0.023]
[1736530374770,0.211742,94455.0,94445.0,0.023]
[1736530375002,0.211742,94455.0,94446.0,0.004]
[1736530375209,0.21175,94451.0,94445.0,0.023]
[1736530375416,0.211761,94446.0,94444.0,0.0481]
[1736530375630,0.211759,94447.0,94430.0,0.0466]
[1736530375831,0.211793,94432.0,94431.0,0.0777]
[1736530376033,0.211764,94445.0,94431.0,0.0777]
[1736530376237,0.211765,94444.0,94432.0,0.023]
[1736530376441,0.211775,94440.0,94432.0,0.023]
[1736530376651,0.42355,94440.0,94432.0,0.023]
[1736530376850,0.211775,94440.0,94432.0,0.023]
[1736530377069,0.211756,94449.0,94438.0,0.023]
[1736530377270,0.211743,94454.0,94443.0,0.211766]
[1736530377563,0.211743,94454.0,94444.0,0.12729976]
[1736530377797,0.211743,94454.0,94444.0,0.10429976]
[1736530377994,0.211754,94450.0,94437.0,0.211779]
[1736530378202,0.211754,94450.0,94438.0,0.023]
[1736530378406,0.001,94449.0,94438.0,0.023]
[1736530378826,0.001,94449.0,94444.0,0.001]
[1736530379693,0.211748,94452.0,94444.0,0.001]
[1736530379901,0.211732,94459.0,94445.0,0.023]
[1736530380041,0.211741,94455.0,94445.0,0.023]
[1736530380611,0.001,94449.0,94445.0,0.023]
[1736530381064,0.001,94449.0,94448.0,0.023]
[1736530381319,0.001,94449.0,94448.0,0.02405864]
[1736530381574,0.01050223,94476.0,94448.0,0.17679976]
[1736530381814,8.53e-05,94491.0,94450.0,0.023]
[1736530382065,8.53e-05,94491.0,94448.0,0.05055861]
[1736530382066,0.211697,94475.0,94464.0,0.21172]
[1736530382279,0.211687,94479.0,94467.0,0.0995]
[1736530382280,0.211688,94479.0,94467.0,0.0995]
[1736530382524,0.2117633,94483.0,94467.0,0.31227246]
[1736530382744,0.2117633,94483.0,94467.0,0.358714]
[1736530382966,8.53e-05,94483.0,94467.0,0.46301376]
[1736530383401,0.2117673,94482.0,94467.0,0.14714511]
[1736530383616,0.2117673,94482.0,94467.0,0.15014511]
[1736530383828,0.2117673,94482.0,94467.0,0.14714511]
[1736530384038,0.211702,94473.0,94467.0,0.14714511]
[1736530384249,0.211689,94478.0,94467.0,0.14995849]
[1736530384493,0.211689,94478.0,94467.0,0.14695849]
[1736530384700,0.211689,94478.0,94467.0,0.15595849]
[1736530384919,0.0010854,94468.0,94467.0,0.13295849]
[1736530385400,0.0010854,94468.0,94467.0,0.13595849]
[1736530387299,0.0010854,94468.0,94467.0,0.15895849]
[1736530387499,0.0010854,94468.0,94467.0,0.26431664]
[1736530387723,0.0010854,94468.0,94467.0,0.26325825]
[1736530389088,0.0010854,94468.0,94467.0,0.08845849]
[1736530389297,0.0010854,94468.0,94467.0,0.01214511]
[1736530390152,0.0010854,94468.0,94467.0,0.00914511]
[1736530390382,0.25538516,94468.0,94467.0,0.00914511]
[1736530390611,0.25438516,94468.0,94467.0,0.00014511]
[1736530390822,0.2648143,94468.0,94467.0,0.00014511]
[1736530391040,0.35376402,94468.0,94467.0,0.00214511]
[1736530391253,0.35376402,94468.0,94433.0,0.0766]
[1736530391254,0.211788,94434.0,94433.0,0.0766]
[1736530391472,0.211788,94434.0,94433.0,0.00014512]
[1736530392119,0.211777,94439.0,94433.0,0.00014512]
[1736530392538,0.211787,94435.0,94433.0,0.00014512]
[1736530393174,0.211787,94435.0,94433.0,0.00414512]
[1736530393377,0.01056243,94446.0,94433.0,0.00414512]
[1736530393584,0.211786,94435.0,94433.0,0.00114512]
[1736530393816,0.211786,94435.0,94433.0,0.00414512]
[1736530394127,0.211786,94435.0,94433.0,0.00314512]
[1736530394609,0.31608576,94435.0,94433.0,0.00314512]
[1736530395048,0.32652951,94434.0,94433.0,0.00314512]
[1736530395283,0.25429976,94434.0,94433.0,0.00314512]
[1736530395653,0.25429976,94434.0,94433.0,0.00014512]
[1736530396453,0.25929976,94434.0,94433.0,0.00114512]
[1736530399287,0.26229976,94434.0,94433.0,0.00114512]
[1736530399526,0.46659952,94434.0,94433.0,0.00114512]
[1736530399750,0.46659952,94434.0,94397.0,0.0483]
[1736530399751,0.15,94428.0,94397.0,0.0483]
[1736530399990,0.211799,94429.0,94390.0,0.08]
[1736530399991,0.361821,94419.0,94390.0,0.08]
[1736530400222,0.46612076,94419.0,94390.0,0.08]
[1736530400918,0.211821,94419.0,94392.0,0.211881]
[1736530401136,0.216821,94419.0,94418.0,0.0011706]
[1736530401342,0.005,94419.0,94418.0,0.0011706]
[1736530402437,0.25429976,94419.0,94418.0,0.0001706]
[1736530402885,0.25729976,94419.0,94418.0,0.0001706]
[1736530403114,0.25429976,94419.0,94418.0,0.0001706]
[1736530403324,0.25529976,94419.0,94418.0,0.0001706]
[1736530403541,0.32626107,94419.0,94418.0,0.0001706]
[1736530403755,0.34781052,94419.0,94418.0,0.0001706]
[1736530403959,0.35081052,94419.0,94418.0,0.0001706]
[1736530404408,0.34581052,94419.0,94418.0,0.0001706]
[1736530404644,0.25,94406.0,94404.0,0.0001706]
[1736530404889,0.32166886,94405.0,94404.0,0.0001706]
[1736530405800,0.53352186,94405.0,94404.0,0.0001706]
[1736530406260,0.53363476,94405.0,94404.0,0.0001706]
[1736530406462,0.46626566,94405.0,94404.0,0.0001706]
[1736530406669,0.47026566,94405.0,94404.0,0.0001706]
[1736530407095,0.48872663,94405.0,94404.0,0.0011706]
[1736530408741,0.23442687,94405.0,94404.0,0.0011706]
[1736530408965,0.0121129,94405.0,94404.0,0.0011706]
[1736530409179,0.0121129,94405.0,94404.0,0.2370848]
[1736530409390,0.0121129,94405.0,94404.0,0.42192536]
[1736530409574,0.211809,94425.0,94405.0,0.023]
[1736530409838,0.211809,94425.0,94413.0,0.023]
[1736530410064,0.211806,94426.0,94414.0,0.211832]
[1736530410770,0.211797,94430.0,94414.0,0.211832]
[1736530410992,0.001,94425.0,94416.0,0.023]
[1736530411209,0.001,94425.0,94424.0,0.28201]
[1736530411631,0.22233742,94445.0,94428.0,0.211799]
[1736530411922,0.211765,94444.0,94428.0,0.211799]
[1736530412193,0.423531,94444.0,94428.0,0.211799]
[1736530412836,0.211765,94444.0,94428.0,0.211799]
[1736530413336,0.211775,94440.0,94425.0,0.023]
[1736530413851,0.211767,94443.0,94429.0,0.211799]
[1736530414061,0.001,94444.0,94431.0,0.294194]
[1736530414320,0.001,94444.0,94431.0,0.0824]
[1736530414321,0.211778,94439.0,94431.0,0.0824]
[1736530414732,0.001,94444.0,94431.0,0.0824]
[1736530415155,0.211778,94439.0,94431.0,0.0824]
[1736530415784,0.211788,94434.0,94431.0,0.0824]
[1736530416057,0.1,94458.0,94425.0,0.004]
[1736530416279,0.211786,94435.0,94431.0,0.001]
[1736530416486,0.02143101,94456.0,94431.0,0.001]
[1736530416487,0.361792,94432.0,94431.0,0.007]
[1736530416704,0.46609176,94432.0,94431.0,0.007]
[1736530416926,0.211813,94423.0,94420.0,0.0771]
[1736530417561,0.423626,94423.0,94420.0,0.0771]
[1736530419729,0.423626,94423.0,94420.0,0.0781]
[1736530420079,0.423626,94423.0,94420.0,0.0821]
[1736530420285,0.211817,94421.0,94420.0,0.004]
[1736530420488,0.21183,94415.0,94414.0,0.0493]
[1736530421173,0.21183,94415.0,94407.0,0.0827]
[1736530421384,0.211846,94408.0,94407.0,0.0827]
[1736530422284,0.211849,94407.0,94404.0,0.00031583]
[1736530422692,0.423698,94407.0,94404.0,0.00031583]
[1736530423991,0.423698,94407.0,94404.0,0.00131583]
[1736530424213,0.423698,94407.0,94404.0,0.00531583]
[1736530424844,0.361853,94405.0,94404.0,0.00531583]
[1736530425095,0.46615276,94405.0,94404.0,0.00531583]
[1736530425753,0.46615276,94405.0,94404.0,0.00431583]
[1736530425962,0.46615276,94405.0,94404.0,0.00531583]
[1736530426380,0.46615276,94405.0,94404.0,0.00131583]
[1736530426590,0.43708563,94405.0,94404.0,0.00531583]
[1736530426799,0.41615276,94405.0,94404.0,0.00531583]
[1736530427019,0.41615276,94405.0,94404.0,0.00131583]
[1736530427231,0.42771683,94405.0,94404.0,0.00131583]
[1736530427480,0.42771683,94405.0,94404.0,0.00031583]
[1736530427959,0.42671683,94405.0,94404.0,0.00031583]
[1736530428420,0.43171683,94405.0,94404.0,0.00031583]
[1736530429131,0.32841707,94405.0,94404.0,0.00031583]
[1736530429589,0.32741707,94405.0,94404.0,0.00031583]
[1736530429784,0.32241707,94405.0,94404.0,0.00031583]
[1736530429952,0.32641707,94405.0,94404.0,0.00031583]
[1736530430225,0.43071683,94405.0,94404.0,0.00031583]
[1736530430427,0.42671683,94405.0,94404.0,0.00031583]
[1736530431617,0.211842,94410.0,94404.0,0.00031583]
[1736530431844,0.211801,94429.0,94405.0,0.0771]
[1736530432089,0.211801,94429.0,94409.0,0.211844]
[1736530432090,0.211817,94421.0,94409.0,0.211844]
[1736530432350,0.211817,94421.0,94406.0,0.21185]
[1736530432557,0.211827,94417.0,94406.0,0.023]
[1736530433413,0.002,94410.0,94406.0,0.023]
[1736530433590,0.001,94410.0,94406.0,0.023]
[1736530434004,0.001,94410.0,94406.0,0.026]
[1736530434228,0.211837,94413.0,94406.0,0.026]
[1736530434472,0.01043406,94415.0,94406.0,0.004]
[1736530434719,0.211833,94414.0,94406.0,0.001]
[1736530434972,0.21183,94416.0,94405.0,0.288952]
[1736530435179,0.15,94424.0,94406.0,0.023]
[1736530435387,0.15,94424.0,94406.0,0.025]
[1736530435594,0.211813,94423.0,94406.0,0.002]
[1736530436484,0.001,94410.0,94406.0,0.008]
[1736530436697,0.212843,94410.0,94406.0,0.006]
[1736530436902,0.31714276,94410.0,94406.0,0.006]
[1736530437110,0.52898576,94410.0,94406.0,0.006]
[1736530437323,0.52898576,94410.0,94405.0,0.001]
[1736530437324,0.21185,94406.0,94405.0,0.001]
[1736530438243,0.21185,94406.0,94404.0,0.00031583]
[1736530439193,0.001,94410.0,94407.0,0.023]
[1736530439375,0.211777,94439.0,94425.0,0.211807]
[1736530439642,0.211777,94439.0,94428.0,0.2118]
[1736530439905,0.211777,94439.0,94429.0,0.0793]
[1736530440608,0.211786,94435.0,94429.0,0.0793]
[1736530441033,0.21178,94438.0,94429.0,0.0793]
[1736530441225,0.211781,94437.0,94429.0,0.0803]
[1736530441473,0.21179,94434.0,94429.0,0.0803]
[1736530441685,0.15,94445.0,94429.0,0.0853]
[1736530441895,0.211778,94439.0,94429.0,0.0813]
[1736530442100,0.361758,94447.0,94429.0,0.0813]
[1736530442310,0.211791,94433.0,94429.0,0.0813]
[1736530442672,0.423583,94433.0,94429.0,0.0813]
[1736530443073,0.423583,94433.0,94429.0,0.002]
[1736530443275,0.52788276,94433.0,94429.0,0.005]
[1736530443476,0.31609076,94433.0,94417.0,0.0756]
[1736530443684,0.10429976,94433.0,94417.0,0.0756]
[1736530443889,8.53e-05,94448.0,94429.0,0.002]
[1736530443890,0.211793,94432.0,94429.0,0.002]
[1736530444092,0.211797,94430.0,94417.0,0.0756]
[1736530444339,0.15,94428.0,94406.0,0.0792]
[1736530444477,0.211834,94414.0,94406.0,0.0792]
[1736530444676,0.15,94426.0,94406.0,0.0792]
[1736530444894,0.15,94424.0,94406.0,0.0792]
[1736530445093,0.211836,94413.0,94406.0,0.0792]
[1736530445467,0.211767,94443.0,94416.0,0.023]
[1736530445623,0.211808,94425.0,94413.0,0.023]
[1736530446190,0.211788,94434.0,94416.0,0.0798]
[1736530446364,0.211788,94434.0,94417.0,0.12835869]
[1736530446612,0.211782,94437.0,94424.0,0.023]
[1736530446790,0.211749,94452.0,94419.0,0.211821]
[1736530446791,0.211792,94433.0,94420.0,0.023]
[1736530447008,0.01042297,94448.0,94417.0,0.0086]
[1736530447276,0.1,94444.0,94416.0,0.0798]
[1736530447503,0.211839,94411.0,94400.0,0.0798]
[1736530447709,0.211844,94409.0,94400.0,0.0798]
[1736530448203,0.211852,94406.0,94401.0,0.023]
[1736530449384,0.01075787,94422.0,94401.0,0.234861]
[1736530449590,0.211829,94416.0,94406.0,0.023]
[1736530449796,0.211829,94416.0,94406.0,0.23485]
[1736530450013,0.211816,94422.0,94411.0,0.023]
[1736530450187,0.211811,94424.0,94416.0,0.001]
[1736530450387,0.211781,94437.0,94418.0,0.0795]
[1736530450591,0.211801,94428.0,94418.0,0.291321]
[1736530450814,0.211801,94428.0,94419.0,0.0493]
[1736530451666,0.15,94442.0,94420.0,0.023]
[1736530451854,0.1605435,94443.0,94419.0,0.0493]
[1736530452061,0.211806,94426.0,94419.0,0.0493]
[1736530452235,0.211806,94426.0,94420.0,0.023]
[1736530452616,0.211815,94422.0,94419.0,0.004]
[1736530453026,0.361819,94420.0,94419.0,0.004]
[1736530453654,0.15,94419.0,94418.0,0.001]
[1736530454051,0.211848,94407.0,94406.0,0.0824]
[1736530454272,0.211845,94409.0,94406.0,0.0824]
[1736530454480,0.42369,94409.0,94406.0,0.0824]
[1736530454682,0.211853,94405.0,94404.0,0.00031583]
[1736530455132,0.46615276,94405.0,94404.0,0.00031583]
[1736530455357,0.55513714,94405.0,94404.0,0.00031583]
[1736530455569,0.46615276,94405.0,94404.0,0.00031583]
[1736530456760,0.361853,94405.0,94404.0,0.00031583]
[1736530456979,0.46615276,94405.0,94404.0,0.00031583]
[1736530457402,0.46815276,94405.0,94404.0,0.00031583]
[1736530457935,0.46615276,94405.0,94404.0,0.00031583]
[1736530458184,0.46915276,94405.0,94404.0,0.00031583]
[1736530458849,0.47115276,94405.0,94404.0,0.00031583]
[1736530459860,0.366853,94405.0,94404.0,0.00031583]
[1736530460291,0.47115276,94405.0,94404.0,0.00031583]
[1736530460726,0.46915276,94405.0,94404.0,0.00031583]
[1736530461136,0.47115276,94405.0,94404.0,0.00031583]
[1736530462081,0.366853,94405.0,94404.0,0.00031583]
[1736530462329,0.216853,94405.0,94404.0,0.00031583]
[1736530462566,0.005,94405.0,94404.0,0.08251583]
[1736530463288,0.002,94405.0,94404.0,0.08251583]
[1736530463536,0.004,94405.0,94404.0,0.08251583]
[1736530463793,0.002,94405.0,94404.0,0.20981559]
[1736530464271,0.002,94405.0,94404.0,0.21481559]
[1736530464508,0.211812,94424.0,94411.0,0.211839]
[1736530464775,0.211805,94427.0,94413.0,0.211835]
[1736530465042,0.211805,94427.0,94405.0,0.211853]
[1736530465283,0.211833,94414.0,94404.0,0.08251583]
[1736530465523,0.211835,94413.0,94404.0,0.08251583]
[1736530465944,0.15,94438.0,94404.0,0.08251583]
[1736530465945,0.211819,94420.0,94405.0,0.023]
[1736530466389,0.15,94436.0,94410.0,0.21184]
[1736530466607,0.21182,94420.0,94410.0,0.21184]
[1736530467005,0.21182,94420.0,94408.0,0.211846]
[1736530467208,0.211812,94424.0,94406.0,0.21185]
[1736530467209,0.211812,94424.0,94407.0,0.023]
[1736530467417,0.15,94434.0,94408.0,0.00105909]
[1736530467626,0.211824,94418.0,94408.0,0.21290509]
[1736530467829,0.211824,94418.0,94408.0,0.211846]
[1736530468059,0.211824,94418.0,94410.0,0.004]
[1736530468474,0.15,94432.0,94410.0,0.004]
[1736530468690,0.003,94436.0,94414.0,0.09999926]
[1736530468898,0.003,94436.0,94435.0,0.344085]
[1736530469113,0.003,94436.0,94435.0,0.47138476]
[1736530469329,8.53e-05,94448.0,94447.0,0.211758]
[1736530469542,8.53e-05,94448.0,94447.0,0.243358]
[1736530469959,8.53e-05,94448.0,94447.0,1.743358]
[1736530470175,8.53e-05,94448.0,94447.0,1.84765776]
[1736530470386,8.53e-05,94448.0,94447.0,1.92450299]
[1736530470614,8.53e-05,94477.0,94451.0,0.023]
[1736530470793,8.53e-05,94477.0,94459.0,0.21173]
[1736530470997,8.53e-05,94477.0,94466.0,0.211716]
[1736530471209,8.53e-05,94477.0,94460.0,0.12729976]
[1736530471411,8.53e-05,94477.0,94460.0,0.1283582]
[1736530471848,8.53e-05,94477.0,94466.0,0.023]
[1736530472047,8.53e-05,94477.0,94467.0,0.42157216]
[1736530472264,8.53e-05,94477.0,94467.0,0.1045]
[1736530472411,8.53e-05,94477.0,94467.0,0.0815]
[1736530472619,0.211703,94472.0,94467.0,0.0815]
[1736530472867,0.211694,94476.0,94467.0,0.0815]
[1736530473421,0.211703,94472.0,94467.0,0.0815]
[1736530473623,0.15,94471.0,94467.0,0.009]
[1736530473823,0.15,94471.0,94460.0,0.003]
[1736530474168,0.15,94466.0,94460.0,0.003]
[1736530474346,0.15,94464.0,94447.0,0.04784523]
[1736530474558,0.211714,94467.0,94447.0,0.04784523]
[1736530474559,0.211753,94450.0,94447.0,0.00014523]
[1736530474767,0.423506,94450.0,94447.0,0.00014523]
[1736530475557,0.423506,94450.0,94447.0,0.00114523]
[1736530475920,0.423506,94450.0,94447.0,0.00014523]
[1736530476378,0.423506,94450.0,94447.0,0.00114523]
[1736530476585,0.423506,94450.0,94447.0,0.00014523]
[1736530477813,0.423506,94450.0,94447.0,0.00114523]
[1736530479478,0.15,94476.0,94447.0,0.00114523]
[1736530479690,0.211743,94454.0,94447.0,0.00014523]
[1736530480302,0.211716,94466.0,94447.0,0.00014523]
[1736530480566,8.54e-05,94468.0,94460.0,0.211728]
[1736530480770,8.54e-05,94468.0,94461.0,0.04745852]
[1736530480979,8.54e-05,94468.0,94461.0,0.0464]
[1736530481569,0.211714,94467.0,94461.0,0.0464]
[1736530481797,0.0010854,94468.0,94461.0,0.0464]
[1736530482043,0.211725,94462.0,94461.0,0.0464]
[1736530482446,0.211718,94465.0,94461.0,0.001]
[1736530482653,0.211714,94467.0,94461.0,0.001]
[1736530482857,0.211721,94464.0,94461.0,0.001]
[1736530483059,0.211721,94464.0,94447.0,0.04804523]
[1736530483060,0.211721,94464.0,94448.0,0.211756]